{"text_format":"1","workbook":"xlsx","n_sheets":3,"sheets":["заявка","Лист2","Лист3"],"not_rendered":{"charts":0,"images":2,"macros":1,"external_links":0,"defined_names":3,"comments":0,"pivot_tables":0},"unopened":[],"bounds":{"document_bytes":16777216,"sheet_cells":100000,"rows_first":2000,"rows_last":500,"rows_between":2000,"halvings":0,"cell_chars":16384,"cell_head_chars":4096},"cells_cut":0,"cells_raw":0,"read":"whole","date_system":"1900"}

{"sheet":"заявка","index":0,"n_rows":60,"n_cols":107,"rows_kept":60,"cut":false,"hidden":false,"merged":[[5,2,5,7],[6,2,6,7],[20,2,20,7],[22,3,22,7],[26,2,26,7],[8,3,8,7],[10,2,10,7],[14,2,14,7],[15,3,15,7],[16,3,16,7],[23,3,23,7],[34,2,34,8],[17,3,17,7],[18,3,18,7],[27,3,27,7],[28,5,28,7],[39,6,39,7],[39,3,39,5],[38,6,38,7],[38,3,38,5],[36,2,36,7],[2,3,2,8],[4,3,4,8],[3,3,3,8],[59,6,59,8],[48,2,48,8],[50,2,50,8],[54,2,54,8],[55,2,55,8],[56,2,56,8],[7,2,7,7],[9,3,9,7],[13,3,13,7],[11,3,11,7],[12,3,12,7],[21,3,21,7],[24,3,24,7]]}
[]
[null,null,null,null,null,null,null,null,"Руководителю регионального отделения по проведению отборочного этапа Конкурса"]
[null,null,"город (организация):","Барнаул (ООО «ГАЦ АР НАКС») "]
[null,null,"контакты:",{"$f":"IFERROR(IF(VLOOKUP(D3,Лист2!P6:S40,2,0)=0,\"\",VLOOKUP(D3,Лист2!P6:S40,2,0)),\"\")","v":"+7(3852) 22-65-22, ar_gac@mail.ru"}]
[null,null,"сроки проведения:",{"$f":"IFERROR(IF(VLOOKUP(D3,Лист2!P6:S40,3,0)=0,\"\",VLOOKUP(D3,Лист2!P6:S40,3,0)),\"\")","v":"06-10.09.201"}]
[null,null,"ЗАЯВКА НА УЧАСТИЕ В ОТБОРОЧНОМ ЭТАПЕ ВСЕРОССИЙСКОГО КОНКУРСА"]
[null,null,"ПО НЕРАЗРУШАЮЩЕМУ КОНТРОЛЮ «ДЕФЕКТОСКОПИСТ-2021»"]
[null,null,"Данные об организации, направляющей специалиста на конкурс"]
[null,null,"Наименование организации"]
[null,null,"ИНН"]
[null,null,"Руководитель"]
[null,null,"ФИО"]
[null,null,"должность",null,null,null,null,null,","]
[null,null,"действующий на основании:"]
[null,null,"Контактное лицо (по вопросам участия в Конкурсе)"]
[null,null,"ФИО"]
[null,null,"должность"]
[null,null,"телефон"]
[null,null,"e-mail"]
[]
[null,null,"     Настоящим прошу зарегистрировать специалиста:"]
[null,null,"ФИО (полностью)"]
[null,null,"должность"]
[null,null,"Сведения о квалификации (метод/уровень)"]
[null,null,"Стаж работы в области НК, лет"]
[]
[null,null,"в качестве участника Конкурса на базе регионального отделения в городе (город из перечня, "]
[null,null,"размещенного на сайте ronktd.ru)"]
[null,null,"                                  в номинации (выбрать одну): ",null,"или","в мулитиноминации (выбрать одну):"]
[null,null,{"$f":"IFERROR(IF(VLOOKUP(D3,Лист2!$P$6:$AN$125,4,0)=1,\"ВИК\",\"\"),\"ВИК\")","v":""},null,null,{"$f":"IFERROR(IF(VLOOKUP(D3,Лист2!$P$6:$AN$125,9,0)=1,\"ВИК+УК\",\"\"),\"ВИК+УК\")","v":"ВИК+УК"},null,null,null,null,null,{"$f":"CONCATENATE(C30,C31,C32,C33,C34)","v":""},null,null,null,null,null,null,null,null,null,null,null,null,null,null,null,null,null,null,null,null,null,null,null,null,null,null,null,null,null,null,null,null,null,null,null,null,null,null,null,null,null,null,null,null,null,null,null,null,null,null,null,null,null,null,null,null,null,null,null,null,null,null,null,null,null,null,null,null,null,null,null,null,null,null,null,null,null,null,null,null,null,null,null,null,null,null,null,null,null,null,null,0,null,null,0]
[null,null,{"$f":"IFERROR(IF(VLOOKUP(D3,Лист2!$P$6:$AN$125,5,0)=1,\"УК\",\"\"),\"УК\")","v":""},null,null,{"$f":"IFERROR(IF(VLOOKUP(D3,Лист2!$P$6:$AN$125,10,0)=1,\"ВИК+РК\",\"\"),\"ВИК+РК\")","v":"ВИК+РК"},null,null,null,null,null,{"$f":"CONCATENATE(F30,F31,F32,F33)","v":"ВИК+УКВИК+РК"},null,null,null,null,null,null,null,null,null,null,null,null,null,null,null,null,null,null,null,null,null,null,null,null,null,null,null,null,null,null,null,null,null,null,null,null,null,null,null,null,null,null,null,null,null,null,null,null,null,null,null,null,null,null,null,null,null,null,null,null,null,null,null,null,null,null,null,null,null,null,null,null,null,null,null,null,null,null,null,null,null,null,null,null,null,null,null,null,null,null,null,0,null,null,0]
[null,null,{"$f":"IFERROR(IF(VLOOKUP(D3,Лист2!$P$6:$AN$125,6,0)=1,\"РК\",\"\"),\"РК\")","v":""},null,null,{"$f":"IFERROR(IF(VLOOKUP(D3,Лист2!$P$6:$AN$125,11,0)=1,\"ВИК+УК+РК\",\"\"),\"ВИК+УК+РК\")","v":""},null,null,null,null,null,{"$f":"IF(AND(LEN(L30)>=2,LEN(L31)>3)=TRUE,1,0)","v":0},null,null,null,null,null,null,null,null,null,null,null,null,null,null,null,null,null,null,null,null,null,null,null,null,null,null,null,null,null,null,null,null,null,null,null,null,null,null,null,null,null,null,null,null,null,null,null,null,null,null,null,null,null,null,null,null,null,null,null,null,null,null,null,null,null,null,null,null,null,null,null,null,null,null,null,null,null,null,null,null,null,null,null,null,null,null,null,null,null,null,null,0,null,null,0]
[null,null,{"$f":"IFERROR(IF(VLOOKUP(D3,Лист2!$P$6:$AN$125,7,0)=1,\"МК\",\"\"),\"МК\")","v":""},null,null,{"$f":"IFERROR(IF(VLOOKUP(D3,Лист2!$P$6:$AN$125,11,0)=1,\"ВИК+МК+ПВК\",\"\"),\"ВИК+МК+ПВК\")","v":""},null,null,null,null,null,{"$f":"LEN(L30)","v":0},null,null,null,null,null,null,null,null,null,null,null,null,null,null,null,null,null,null,null,null,null,null,null,null,null,null,null,null,null,null,null,null,null,null,null,null,null,null,null,null,null,null,null,null,null,null,null,null,null,null,null,null,null,null,null,null,null,null,null,null,null,null,null,null,null,null,null,null,null,null,null,null,null,null,null,null,null,null,null,null,null,null,null,null,null,null,null,null,null,null,null,0,null,null,0]
[null,null,{"$f":"IFERROR(IF(VLOOKUP(D3,Лист2!$P$6:$AN$125,8,0)=1,\"ПВК\",\"\"),\"ПВК\")","v":""},null,null,null,null,null,null,null,null,{"$f":"LEN(L31)","v":12},null,null,null,null,null,null,null,null,null,null,null,null,null,null,null,null,null,null,null,null,null,null,null,null,null,null,null,null,null,null,null,null,null,null,null,null,null,null,null,null,null,null,null,null,null,null,null,null,null,null,null,null,null,null,null,null,null,null,null,null,null,null,null,null,null,null,null,null,null,null,null,null,null,null,null,null,null,null,null,null,null,null,null,null,null,null,null,null,null,null,null,0]
[null,null,"       Подписанием настоящей заявки подтверждаю, что указанный в настоящей заявке участник Конкурса ознакомлен с Положением о Конкурсе и иной официально опубликованной конкурсной документацией, размещенной  в интернет по адресу: https://ronktd.ru/directions/konkurs/, которые являются обязательными для участника Конкурса. "]
[null,null,"Приложение:"]
[null,null,"1) Согласие на обработку персональных данных"]
[]
[null,null,"Руководитель организации"]
[null,null,null,"подпись",null,null,"И.О. Фамилия "]
[null,null,"МП"]
[]
[null,null,null,null,null,null,null,null,"Приложение к заявке на участие\n"]
[null,null,null,null,null,null,null,null,"в Конкурсе «Дефектоскопист 2021»"]
[null,null,null,null,null,null,null,null,"(заполняется лично конкурсантом)"]
[]
[]
[]
[null,null,"Согласие на обработку персональных данных"]
[null,null,"    Я,"]
[null,null,"Фамилия Имя Отчество, дата рождения"]
[]
[]
[]
[null,null,"наименование документа, удостоверяющего личность, номер документа, кем выдан и когда"]
[null,null,"согласен (-на) на обработку в соответствии с Федеральным законом от 27 июля 2006 г. № 152- ФЗ «О персональных данных» (Собрание законодательства Российской Федерации, 2006, № 31, ст. 3451) моих персональных данных, указанных в настоящей заявке и прилагаемых к ней документах (фамилия, имя, отчество (при наличии), дата и место рождения, реквизиты документа, удостоверяющего личность (наименование документа, серия, номер, кем выдан и когда, место проживания (регистрации), место работы, должность, образование, квалификация, аттестация), а также результатов моего участия во Всероссийском конкурсе РОНКТД по неразрушающему контролю «Дефектоскопист 2021», внесения и хранения соответствующей информации в электронных информационных системах и на сайтах Российского общества по неразрушающему контролю и технической диагностике и Саморегулируемой организации Ассоциация «Национальное Агентство Контроля Сварки»."]
[null,null,"    Я уведомлен (-а) и понимаю, что под обработкой персональных данных подразумевается совершение следующих действий (операций): сбор, обработка, запись, систематизация, накопление, хранение, уточнение (обновление, изменение), извлечение, использование, подтверждение, передача (распространение, предоставление, доступ), обезличивание, блокирование, удаление, уничтожение персональных данных по истечении срока действия настоящего согласия в соответствии с Федеральным законом от 27 июля 2006 г. N 152-ФЗ «О персональных данных»."]
[]
[]
[null,null,null,"«_____»__________2021",null,null,"Фамилия И.О."]

{"sheet":"Лист2","index":1,"n_rows":127,"n_cols":27,"rows_kept":127,"cut":false,"hidden":true,"merged":[]}
[]
[]
[]
[null,"Наименование центра СНК ОПО РОНКТД","Город","Телефон, e-mail","Сроки проведения","Номинации","ВИК","УК","РК","МК","ПВК","ВИК+УК","ВИК+РК","ВИК+УК+РК","ВИК+МК+ПВК",null,null,null,"ВИК","УК","РК","МК","ПВК","ВИК+УК","ВИК+РК","ВИК+УК+РК","ВИК+МК+ПВК"]
[]
[null,"ООО «НАКС Архангельск»","Архангельск","+7 (8182) 60-89-39 \nnaksarh@mail.ru","06-14.09.2021","ВИК, УК, РК, ВИК+РК, ВИК+УК, ВИК+УК+РК",1,1,1,null,null,1,1,1,null,{"$f":"IF(LEN(B6)<3,\"\",CONCATENATE(C6,\" (\",B6,\") \"))","v":"Архангельск (ООО «НАКС Архангельск») "},{"$f":"IF(Лист2!D6=0,\"\",Лист2!D6)","v":"+7 (8182) 60-89-39 \nnaksarh@mail.ru"},{"$f":"IF(E6=0,\"\",E6)","v":"06-14.09.2021"},{"$f":"IF(G6=0,\"\",G6)","v":1},{"$f":"IF(H6=0,\"\",H6)","v":1},1,"","",1,1,1,""]
[null,"ООО «ГАЦ АР НАКС»","Барнаул","+7(3852) 22-65-22, ar_gac@mail.ru","06-10.09.201","ВИК+РК, ВИК+УК, ВИК+МК+ПВК",null,null,null,null,null,1,1,null,1,{"$f":"IF(LEN(B7)<3,\"\",CONCATENATE(C7,\" (\",B7,\") \"))","v":"Барнаул (ООО «ГАЦ АР НАКС») "},{"$f":"IF(Лист2!D7=0,\"\",Лист2!D7)","v":"+7(3852) 22-65-22, ar_gac@mail.ru"},{"$f":"IF(E7=0,\"\",E7)","v":"06-10.09.201"},{"$f":"IF(G7=0,\"\",G7)","v":""},{"$f":"IF(H7=0,\"\",H7)","v":""},{"$f":"IF(I7=0,\"\",I7)","v":""},{"$f":"IF(J7=0,\"\",J7)","v":""},{"$f":"IF(K7=0,\"\",K7)","v":""},{"$f":"IF(L7=0,\"\",L7)","v":1},{"$f":"IF(M7=0,\"\",M7)","v":1},{"$f":"IF(N7=0,\"\",N7)","v":""},{"$f":"IF(O7=0,\"\",O7)","v":1}]
[null,"ООО «Тихоокеанский ГАЦ»","Владивосток","+7(423) 260-42-10 torgac@mail.ru","06-10.09.2021","ВИК, РК, УК, ПВК, МК",1,1,1,1,1,null,null,null,null,"Владивосток (ООО «Тихоокеанский ГАЦ») ",{"$f":"IF(Лист2!D8=0,\"\",Лист2!D8)","v":"+7(423) 260-42-10 torgac@mail.ru"},"06-10.09.2021",1,1,1,1,1,"","","",""]
[null,"ООО «НВЦ «Сварка»","Волгоград","+(8442) 73-91-56 volga-weld@yandex.ru","07-09.09.2021","ВИК, РК, УК",1,1,1,null,null,null,null,null,null,"Волгоград (ООО «НВЦ «Сварка») ",{"$f":"IF(Лист2!D9=0,\"\",Лист2!D9)","v":"+(8442) 73-91-56 volga-weld@yandex.ru"},"07-09.09.2021",1,1,1,"","","","","",""]
[null,"АНО «ВРАЦ»","Вологда","+7 (8172) 27-23-03 \nvikulov@vologda.ru","08-09.09.2021","ВИК, УК, РК, ВИК+РК, ВИК+УК, ВИК+УК+РК",1,1,1,null,null,1,1,1,null,"Вологда (АНО «ВРАЦ») ",{"$f":"IF(Лист2!D10=0,\"\",Лист2!D10)","v":"+7 (8172) 27-23-03 \nvikulov@vologda.ru"},"08-09.09.2021",1,1,1,"","",1,1,1,""]
[null,"ООО «НАКС-Урал»","Екатеринбург","+7 (343)264-90-12 \nnaks-ural@naks-ural.ru","13-15.09.2021","ВИК, УК, РК",1,1,1,null,null,null,null,null,null,"Екатеринбург (ООО «НАКС-Урал») ",{"$f":"IF(Лист2!D11=0,\"\",Лист2!D11)","v":"+7 (343)264-90-12 \nnaks-ural@naks-ural.ru"},"13-15.09.2021",1,1,1,"","","","","",""]
[null,"ООО «НАКС-Ижевск»","Ижевск","+7 (3412) 48-35-38 \nac@naks-izhevsk.ru","06-10.09.2021","ВИК+РК, ВИК+УК",null,null,null,null,null,1,1,null,null,"Ижевск (ООО «НАКС-Ижевск») ",{"$f":"IF(Лист2!D12=0,\"\",Лист2!D12)","v":"+7 (3412) 48-35-38 \nac@naks-izhevsk.ru"},"06-10.09.2021","","","","","",1,1,"",""]
[null,"ООО «Центр НК»","Казань","+7 (843) 571-05-02 \nmail@centr-nk.ru","26-28.07.2021","ВИК, УК, РК, ВИК+РК, ВИК+УК, ",1,1,1,null,null,1,1,null,null,"Казань (ООО «Центр НК») ",{"$f":"IF(Лист2!D13=0,\"\",Лист2!D13)","v":"+7 (843) 571-05-02 \nmail@centr-nk.ru"},"26-28.07.2021",1,1,1,"","",1,1,"",""]
[null,"ООО «КЦСК»","Кемерово","+7 (3842)44-14-92 \nkcsk@naks.ru","17-19.08.2021","ВИК, ВИК+УК, ВИК+МК+ПВК",1,null,null,null,null,1,null,null,1,"Кемерово (ООО «КЦСК») ",{"$f":"IF(Лист2!D14=0,\"\",Лист2!D14)","v":"+7 (3842)44-14-92 \nkcsk@naks.ru"},"17-19.08.2021",1,"","","","",1,"","",1]
[null,"ООО «ЮРГАЦ №3 НАКС»","Краснодар","+7 (861) 224-57-68 \nyur3gac@naks.ru  ","06-08.09.2021","ВИК, РК, УК, ПВК, МК, ВИК+РК, ВИК+УК, ВИК+МК+ПВК, ВИК+УК+РК",1,1,1,1,1,1,1,1,1,"Краснодар (ООО «ЮРГАЦ №3 НАКС») ",{"$f":"IF(Лист2!D15=0,\"\",Лист2!D15)","v":"+7 (861) 224-57-68 \nyur3gac@naks.ru  "},"06-08.09.2021",1,1,1,1,1,1,1,1,1]
[null,"ООО «ГАЦ-ССР»","Красноярск","+7 (391) 230-06-93 \ngac@gacssr.ru","17-19.08.2021","ВИК, УК, ВИК+УК",1,1,null,null,null,1,null,null,null,"Красноярск (ООО «ГАЦ-ССР») ",{"$f":"IF(Лист2!D16=0,\"\",Лист2!D16)","v":"+7 (391) 230-06-93 \ngac@gacssr.ru"},"17-19.08.2021",1,1,"","","",1,"","",""]
[null,"ООО «СЕРТИНК ПЛЮС»","Москва","+7 (977) 507-42-02 info@sertinkplus.ru","16-20.08.2021","ВИК, РК, УК, ПВК, МК, ВИК+РК, ВИК+УК, ВИК+МК+ПВК, ВИК+УК+РК",1,1,1,1,1,1,1,1,1,"Москва (ООО «СЕРТИНК ПЛЮС») ",{"$f":"IF(Лист2!D17=0,\"\",Лист2!D17)","v":"+7 (977) 507-42-02 info@sertinkplus.ru"},"16-20.08.2021",1,1,1,1,1,1,1,1,1]
[null,"ООО «ГАЦ ВВР»","Нижний Новгород","+7 (831) 216-43-89 \ninfo@gacvvr.ru","07-09.09.2021","ПВК, ВИК+РК, ВИК+УК, ВИК+УК+РК",null,null,null,null,1,1,1,1,null,"Нижний Новгород (ООО «ГАЦ ВВР») ",{"$f":"IF(Лист2!D18=0,\"\",Лист2!D18)","v":"+7 (831) 216-43-89 \ninfo@gacvvr.ru"},"07-09.09.2021","","","","",1,1,1,1,""]
[null,"ООО «Аттестационный центр «Сварка»","Новосибирск","+7 (383) 363-00-27 \nsvarka@ac-svarka.ru","02-03.09.2021","ВИК, УК, ПВК",1,1,null,null,1,null,null,null,null,"Новосибирск (ООО «Аттестационный центр «Сварка») ",{"$f":"IF(Лист2!D19=0,\"\",Лист2!D19)","v":"+7 (383) 363-00-27 \nsvarka@ac-svarka.ru"},"02-03.09.2021",1,1,"","",1,"","","",""]
[null,"ООО «НАКС-ПФО»","Оренбург","+7 (3532) 30-60-09 \nmail@nakspfo.ru","30-31.08.2021","ВИК, РК, УК, ВИК+УК, ВИК+РК",1,1,1,null,null,1,1,null,null,"Оренбург (ООО «НАКС-ПФО») ",{"$f":"IF(Лист2!D20=0,\"\",Лист2!D20)","v":"+7 (3532) 30-60-09 \nmail@nakspfo.ru"},"30-31.08.2021",1,1,1,"","",1,1,"",""]
[null,"ООО «НАКС-Пенза»","Пенза","+7 (8412) 20-37-40 \noffice@naks-penza.ru","02-13.08.2021","ПВК, МК, ВИК+РК, ВИК+УК,",null,null,null,1,1,1,1,null,null,"Пенза (ООО «НАКС-Пенза») ",{"$f":"IF(Лист2!D21=0,\"\",Лист2!D21)","v":"+7 (8412) 20-37-40 \noffice@naks-penza.ru"},"02-13.08.2021","","","",1,1,1,1,"",""]
[null,"ЗАО «ЗУАЦ»","Пермь","+7 (342) 206-05-71 naksperm@naks.ru","30.06-02.07.2021","ВИК+РК, ВИК+УК",null,null,null,null,null,1,1,null,null,"Пермь (ЗАО «ЗУАЦ») ",{"$f":"IF(Лист2!D22=0,\"\",Лист2!D22)","v":"+7 (342) 206-05-71 naksperm@naks.ru"},"30.06-02.07.2021","","","","","",1,1,"",""]
[null,"ООО НПП «КОМПЛЕКС»","Петропавловск-Камчатский","+7 (4152) 30-71-81 KhizevaEA@nppkomplex.ru",null,"ВИК+РК, ВИК+УК",null,null,null,null,null,1,1,null,null,"Петропавловск-Камчатский (ООО НПП «КОМПЛЕКС») ",{"$f":"IF(Лист2!D23=0,\"\",Лист2!D23)","v":"+7 (4152) 30-71-81 KhizevaEA@nppkomplex.ru"},"","","","","","",1,1,"",""]
[null,"ООО «ГОССп ЮР»","Ростов-на-Дону","+7 (863) 333-01-23 \ngac-ur@yandex.ru ","06-10.09.2021","ВИК, УК, РК, ВИК+РК, ВИК+УК",1,1,1,null,null,1,1,null,null,"Ростов-на-Дону (ООО «ГОССп ЮР») ",{"$f":"IF(Лист2!D24=0,\"\",Лист2!D24)","v":"+7 (863) 333-01-23 \ngac-ur@yandex.ru "},"06-10.09.2021",1,1,1,"","",1,1,"",""]
[null,"ООО «СЗ АНТЦ «Энергомонтаж»","Санкт-Петербург","+7 (812) 245-69-64 \nmail@antcszem.ru","06-10.09.2021","ВИК+РК, ВИК+УК, ВИК+МК+ПВК, ВИК+УК+РК",null,null,null,null,null,1,1,1,1,"Санкт-Петербург (ООО «СЗ АНТЦ «Энергомонтаж») ",{"$f":"IF(Лист2!D25=0,\"\",Лист2!D25)","v":"+7 (812) 245-69-64 \nmail@antcszem.ru"},"06-10.09.2021","","","","","",1,1,1,1]
[null,"ООО «Центр СМТК»","Саранск, Ульяновск","+7 (8342) 23-35-81 \nsmtksaransk@naks.ru","02-13.08.2021","ПВК, МК, ВИК+РК, ВИК+УК, ",null,null,null,1,1,1,1,null,null,"Саранск, Ульяновск (ООО «Центр СМТК») ",{"$f":"IF(Лист2!D26=0,\"\",Лист2!D26)","v":"+7 (8342) 23-35-81 \nsmtksaransk@naks.ru"},"02-13.08.2021","","","",1,1,1,1,"",""]
[null,"ООО «НАКС-Саратов»","Саратов","+7(8452) 39-96-88 saratov@naks.ru","02-13.08.2021","ПВК, МК, ВИК+РК, ВИК+УК,",null,null,null,1,1,1,1,null,null,"Саратов (ООО «НАКС-Саратов») ",{"$f":"IF(Лист2!D27=0,\"\",Лист2!D27)","v":"+7(8452) 39-96-88 saratov@naks.ru"},"02-13.08.2021","","","",1,1,1,1,"",""]
[null,"ООО «НАКС-Технология»","Стерлитамак","+7(347)246-96-44 sdg@naks-rb.ru","06-08.09.2021","ВИК, РК, УК, ПВК, МК, ВИК+РК, ВИК+УК, ВИК+МК+ПВК, ВИК+УК+РК",1,1,1,1,1,1,1,1,1,"Стерлитамак (ООО «НАКС-Технология») ",{"$f":"IF(Лист2!D28=0,\"\",Лист2!D28)","v":"+7(347)246-96-44 sdg@naks-rb.ru"},"06-08.09.2021",1,1,1,1,1,1,1,1,1]
[null,"ООО «ЗАПАДНО-СИБИРСКИЙ ЦОК»","Сургут","+7(3462) 777-614 221281.81@mail.ru","13-15.09.2021","ВИК, УК, РК, ВИК+УК, ВИК+РК",1,1,1,null,null,1,1,null,null,"Сургут (ООО «ЗАПАДНО-СИБИРСКИЙ ЦОК») ",{"$f":"IF(Лист2!D29=0,\"\",Лист2!D29)","v":"+7(3462) 777-614 221281.81@mail.ru"},"13-15.09.2021",1,1,1,"","",1,1,"",""]
[null,"ООО «НАКС-ТВЕРЬ»","Тверь","+7 (495) 532-77-22 infotver@naks.ru","26-30.07.2021","ВИК, УК, РК",1,1,1,null,null,null,null,null,null,"Тверь (ООО «НАКС-ТВЕРЬ») ",{"$f":"IF(Лист2!D30=0,\"\",Лист2!D30)","v":"+7 (495) 532-77-22 infotver@naks.ru"},"26-30.07.2021",1,1,1,"","","","","",""]
[null,"ООО «ССДЦ «Дельта»","Тольятти","+7 (8482) 55-57-42 \noffice@ssdc-delta.ru","07-09.09.2021","ВИК, РК, УК, ПВК, МК",1,1,1,1,1,null,null,null,null,"Тольятти (ООО «ССДЦ «Дельта») ",{"$f":"IF(Лист2!D31=0,\"\",Лист2!D31)","v":"+7 (8482) 55-57-42 \noffice@ssdc-delta.ru"},"07-09.09.2021",1,1,1,1,1,"","","",""]
[null,"ООО «АЦ ПРОМЭКСПЕРТ»","Тула","+7 (4872) 56-81-26 \nmail@acpromexpert.ru","13-15.09.2021","ВИК, ВИК+РК",1,null,null,null,null,null,1,null,null,"Тула (ООО «АЦ ПРОМЭКСПЕРТ») ",{"$f":"IF(Лист2!D32=0,\"\",Лист2!D32)","v":"+7 (4872) 56-81-26 \nmail@acpromexpert.ru"},"13-15.09.2021",1,"","","","","",1,"",""]
[null,"ООО «ЦКС»","Тюмень","+7(3452) 67-99-79 cks-naks@mail.ru","08-10.09.2021","ВИК, УК, РК, ВИК+РК, ВИК+УК",1,1,1,null,null,1,1,null,null,"Тюмень (ООО «ЦКС») ",{"$f":"IF(Лист2!D33=0,\"\",Лист2!D33)","v":"+7(3452) 67-99-79 cks-naks@mail.ru"},"08-10.09.2021",1,1,1,"","",1,1,"",""]
[null,"ООО «АЦ СТС»","Уфа","+7(347)246-87-25 \nacsts@ufamail.ru","06-08.09.2021","ВИК, РК, УК, ПВК, МК, ВИК+РК, ВИК+УК, ВИК+МК+ПВК, ВИК+УК+РК",1,1,1,1,1,1,1,1,1,"Уфа (ООО «АЦ СТС») ",{"$f":"IF(Лист2!D34=0,\"\",Лист2!D34)","v":"+7(347)246-87-25 \nacsts@ufamail.ru"},"06-08.09.2021",1,1,1,1,1,1,1,1,1]
[null,"ООО «ЦПС «Сварка и Контроль»","Челябинск","+7 (351) 729-94-20 \ncentr@svarka74.ru   ","13-15.09.2021","ВИК, РК, УК, ПВК, МК",1,1,1,1,1,null,null,null,null,"Челябинск (ООО «ЦПС «Сварка и Контроль») ",{"$f":"IF(Лист2!D35=0,\"\",Лист2!D35)","v":"+7 (351) 729-94-20 \ncentr@svarka74.ru   "},"13-15.09.2021",1,1,1,1,1,"","","",""]
[null,"ООО АЦ «ОСТРОВНОЙ»","Южно-Сахалинск","+7 (4242) 46-61-39 \ntechincome.gena@mail.ru","08-10.09.2021","ВИК, РК, МК, ПВК, ВИК+РК",1,null,1,1,1,null,1,null,null,"Южно-Сахалинск (ООО АЦ «ОСТРОВНОЙ») ",{"$f":"IF(Лист2!D36=0,\"\",Лист2!D36)","v":"+7 (4242) 46-61-39 \ntechincome.gena@mail.ru"},"08-10.09.2021",1,"",1,1,1,"",1,"",""]
[null,"ООО «НАКС-Ярославль»","Ярославль","+7 (4852) 59-41-19 \nSvarka@NAKS-Yaroslavl.ru","06-08.09.2021","ВИК, УК, РК, ПВК",1,1,1,null,1,null,null,null,null,"Ярославль (ООО «НАКС-Ярославль») ",{"$f":"IF(Лист2!D37=0,\"\",Лист2!D37)","v":"+7 (4852) 59-41-19 \nSvarka@NAKS-Yaroslavl.ru"},"06-08.09.2021",1,1,1,"",1,"","","",""]
[null,null,null,null,null,null,null,null,null,null,null,null,null,null,null,"",{"$f":"IF(Лист2!D38=0,\"\",Лист2!D38)","v":""},"","","","","","","","","",""]
[null,null,null,null,null,null,null,null,null,null,null,null,null,null,null,"",{"$f":"IF(Лист2!D39=0,\"\",Лист2!D39)","v":""},"","","","","","","","","",""]
[null,null,null,null,null,null,null,null,null,null,null,null,null,null,null,"",{"$f":"IF(Лист2!D40=0,\"\",Лист2!D40)","v":""},"","","","","","","","","",""]
[null,null,null,null,null,null,null,null,null,null,null,null,null,null,null,"",{"$f":"IF(Лист2!D41=0,\"\",Лист2!D41)","v":""},"","","","","","","","","",""]
[null,null,null,null,null,null,null,null,null,null,null,null,null,null,null,"",{"$f":"IF(Лист2!D42=0,\"\",Лист2!D42)","v":""},"","","","","","","","","",""]
[null,null,null,null,null,null,null,null,null,null,null,null,null,null,null,"",{"$f":"IF(Лист2!D43=0,\"\",Лист2!D43)","v":""},"","","","","","","","","",""]
[null,null,null,null,null,null,null,null,null,null,null,null,null,null,null,"",{"$f":"IF(Лист2!D44=0,\"\",Лист2!D44)","v":""},"","","","","","","","","",""]
[null,null,null,null,null,null,null,null,null,null,null,null,null,null,null,"",{"$f":"IF(Лист2!D45=0,\"\",Лист2!D45)","v":""},"","","","","","","","","",""]
[null,null,null,null,null,null,null,null,null,null,null,null,null,null,null,"",{"$f":"IF(Лист2!D46=0,\"\",Лист2!D46)","v":""},"","","","","","","","","",""]
[null,null,null,null,null,null,null,null,null,null,null,null,null,null,null,"",{"$f":"IF(Лист2!D47=0,\"\",Лист2!D47)","v":""},"","","","","","","","","",""]
[null,null,null,null,null,null,null,null,null,null,null,null,null,null,null,"",{"$f":"IF(Лист2!D48=0,\"\",Лист2!D48)","v":""},"","","","","","","","","",""]
[null,null,null,null,null,null,null,null,null,null,null,null,null,null,null,"",{"$f":"IF(Лист2!D49=0,\"\",Лист2!D49)","v":""},"","","","","","","","","",""]
[null,null,null,null,null,null,null,null,null,null,null,null,null,null,null,"",{"$f":"IF(Лист2!D50=0,\"\",Лист2!D50)","v":""},"","","","","","","","","",""]
[null,null,null,null,null,null,null,null,null,null,null,null,null,null,null,"",{"$f":"IF(Лист2!D51=0,\"\",Лист2!D51)","v":""},"","","","","","","","","",""]
[null,null,null,null,null,null,null,null,null,null,null,null,null,null,null,"",{"$f":"IF(Лист2!D52=0,\"\",Лист2!D52)","v":""},"","","","","","","","","",""]
[null,null,null,null,null,null,null,null,null,null,null,null,null,null,null,"",{"$f":"IF(Лист2!D53=0,\"\",Лист2!D53)","v":""},"","","","","","","","","",""]
[null,null,null,null,null,null,null,null,null,null,null,null,null,null,null,"",{"$f":"IF(Лист2!D54=0,\"\",Лист2!D54)","v":""},"","","","","","","","","",""]
[null,null,null,null,null,null,null,null,null,null,null,null,null,null,null,"",{"$f":"IF(Лист2!D55=0,\"\",Лист2!D55)","v":""},"","","","","","","","","",""]
[null,null,null,null,null,null,null,null,null,null,null,null,null,null,null,"",{"$f":"IF(Лист2!D56=0,\"\",Лист2!D56)","v":""},"","","","","","","","","",""]
[null,null,null,null,null,null,null,null,null,null,null,null,null,null,null,"",{"$f":"IF(Лист2!D57=0,\"\",Лист2!D57)","v":""},"","","","","","","","","",""]
[null,null,null,null,null,null,null,null,null,null,null,null,null,null,null,"",{"$f":"IF(Лист2!D58=0,\"\",Лист2!D58)","v":""},"","","","","","","","","",""]
[null,null,null,null,null,null,null,null,null,null,null,null,null,null,null,"",{"$f":"IF(Лист2!D59=0,\"\",Лист2!D59)","v":""},"","","","","","","","","",""]
[null,null,null,null,null,null,null,null,null,null,null,null,null,null,null,"",{"$f":"IF(Лист2!D60=0,\"\",Лист2!D60)","v":""},"","","","","","","","","",""]
[null,null,null,null,null,null,null,null,null,null,null,null,null,null,null,"",{"$f":"IF(Лист2!D61=0,\"\",Лист2!D61)","v":""},"","","","","","","","","",""]
[null,null,null,null,null,null,null,null,null,null,null,null,null,null,null,"",{"$f":"IF(Лист2!D62=0,\"\",Лист2!D62)","v":""},"","","","","","","","","",""]
[null,null,null,null,null,null,null,null,null,null,null,null,null,null,null,"",{"$f":"IF(Лист2!D63=0,\"\",Лист2!D63)","v":""},"","","","","","","","","",""]
[null,null,null,null,null,null,null,null,null,null,null,null,null,null,null,"",{"$f":"IF(Лист2!D64=0,\"\",Лист2!D64)","v":""},"","","","","","","","","",""]
[null,null,null,null,null,null,null,null,null,null,null,null,null,null,null,"",{"$f":"IF(Лист2!D65=0,\"\",Лист2!D65)","v":""},"","","","","","","","","",""]
[null,null,null,null,null,null,null,null,null,null,null,null,null,null,null,"",{"$f":"IF(Лист2!D66=0,\"\",Лист2!D66)","v":""},"","","","","","","","","",""]
[null,null,null,null,null,null,null,null,null,null,null,null,null,null,null,"",{"$f":"IF(Лист2!D67=0,\"\",Лист2!D67)","v":""},"","","","","","","","","",""]
[null,null,null,null,null,null,null,null,null,null,null,null,null,null,null,"",{"$f":"IF(Лист2!D68=0,\"\",Лист2!D68)","v":""},"","","","","","","","","",""]
[null,null,null,null,null,null,null,null,null,null,null,null,null,null,null,"",{"$f":"IF(Лист2!D69=0,\"\",Лист2!D69)","v":""},"","","","","","","","","",""]
[null,null,null,null,null,null,null,null,null,null,null,null,null,null,null,"",{"$f":"IF(Лист2!D70=0,\"\",Лист2!D70)","v":""},"","","","","","","","","",""]
[null,null,null,null,null,null,null,null,null,null,null,null,null,null,null,{"$f":"IF(LEN(B71)<3,\"\",CONCATENATE(C71,\" (\",B71,\") \"))","v":""},{"$f":"IF(Лист2!D71=0,\"\",Лист2!D71)","v":""},{"$f":"IF(E71=0,\"\",E71)","v":""},{"$f":"IF(G71=0,\"\",G71)","v":""},{"$f":"IF(H71=0,\"\",H71)","v":""},{"$f":"IF(I71=0,\"\",I71)","v":""},{"$f":"IF(J71=0,\"\",J71)","v":""},{"$f":"IF(K71=0,\"\",K71)","v":""},{"$f":"IF(L71=0,\"\",L71)","v":""},{"$f":"IF(M71=0,\"\",M71)","v":""},{"$f":"IF(N71=0,\"\",N71)","v":""},{"$f":"IF(O71=0,\"\",O71)","v":""}]
[null,null,null,null,null,null,null,null,null,null,null,null,null,null,null,"",{"$f":"IF(Лист2!D72=0,\"\",Лист2!D72)","v":""},"","","","","","","","","",""]
[null,null,null,null,null,null,null,null,null,null,null,null,null,null,null,"",{"$f":"IF(Лист2!D73=0,\"\",Лист2!D73)","v":""},"","","","","","","","","",""]
[null,null,null,null,null,null,null,null,null,null,null,null,null,null,null,"",{"$f":"IF(Лист2!D74=0,\"\",Лист2!D74)","v":""},"","","","","","","","","",""]
[null,null,null,null,null,null,null,null,null,null,null,null,null,null,null,"",{"$f":"IF(Лист2!D75=0,\"\",Лист2!D75)","v":""},"","","","","","","","","",""]
[null,null,null,null,null,null,null,null,null,null,null,null,null,null,null,"",{"$f":"IF(Лист2!D76=0,\"\",Лист2!D76)","v":""},"","","","","","","","","",""]
[null,null,null,null,null,null,null,null,null,null,null,null,null,null,null,"",{"$f":"IF(Лист2!D77=0,\"\",Лист2!D77)","v":""},"","","","","","","","","",""]
[null,null,null,null,null,null,null,null,null,null,null,null,null,null,null,"",{"$f":"IF(Лист2!D78=0,\"\",Лист2!D78)","v":""},"","","","","","","","","",""]
[null,null,null,null,null,null,null,null,null,null,null,null,null,null,null,"",{"$f":"IF(Лист2!D79=0,\"\",Лист2!D79)","v":""},"","","","","","","","","",""]
[null,null,null,null,null,null,null,null,null,null,null,null,null,null,null,"",{"$f":"IF(Лист2!D80=0,\"\",Лист2!D80)","v":""},"","","","","","","","","",""]
[null,null,null,null,null,null,null,null,null,null,null,null,null,null,null,"",{"$f":"IF(Лист2!D81=0,\"\",Лист2!D81)","v":""},"","","","","","","","","",""]
[null,null,null,null,null,null,null,null,null,null,null,null,null,null,null,"",{"$f":"IF(Лист2!D82=0,\"\",Лист2!D82)","v":""},"","","","","","","","","",""]
[null,null,null,null,null,null,null,null,null,null,null,null,null,null,null,"",{"$f":"IF(Лист2!D83=0,\"\",Лист2!D83)","v":""},"","","","","","","","","",""]
[null,null,null,null,null,null,null,null,null,null,null,null,null,null,null,"",{"$f":"IF(Лист2!D84=0,\"\",Лист2!D84)","v":""},""]
[null,null,null,null,null,null,null,null,null,null,null,null,null,null,null,"",{"$f":"IF(Лист2!D85=0,\"\",Лист2!D85)","v":""},""]
[null,null,null,null,null,null,null,null,null,null,null,null,null,null,null,"",{"$f":"IF(Лист2!D86=0,\"\",Лист2!D86)","v":""},""]
[null,null,null,null,null,null,null,null,null,null,null,null,null,null,null,"",{"$f":"IF(Лист2!D87=0,\"\",Лист2!D87)","v":""},""]
[null,null,null,null,null,null,null,null,null,null,null,null,null,null,null,"",{"$f":"IF(Лист2!D88=0,\"\",Лист2!D88)","v":""},""]
[null,null,null,null,null,null,null,null,null,null,null,null,null,null,null,"",{"$f":"IF(Лист2!D89=0,\"\",Лист2!D89)","v":""},""]
[null,null,null,null,null,null,null,null,null,null,null,null,null,null,null,"",{"$f":"IF(Лист2!D90=0,\"\",Лист2!D90)","v":""},""]
[null,null,null,null,null,null,null,null,null,null,null,null,null,null,null,"",{"$f":"IF(Лист2!D91=0,\"\",Лист2!D91)","v":""},""]
[null,null,null,null,null,null,null,null,null,null,null,null,null,null,null,"",{"$f":"IF(Лист2!D92=0,\"\",Лист2!D92)","v":""},""]
[null,null,null,null,null,null,null,null,null,null,null,null,null,null,null,"",{"$f":"IF(Лист2!D93=0,\"\",Лист2!D93)","v":""},""]
[null,null,null,null,null,null,null,null,null,null,null,null,null,null,null,"",{"$f":"IF(Лист2!D94=0,\"\",Лист2!D94)","v":""},""]
[null,null,null,null,null,null,null,null,null,null,null,null,null,null,null,"",{"$f":"IF(Лист2!D95=0,\"\",Лист2!D95)","v":""},""]
[null,null,null,null,null,null,null,null,null,null,null,null,null,null,null,"",{"$f":"IF(Лист2!D96=0,\"\",Лист2!D96)","v":""},""]
[null,null,null,null,null,null,null,null,null,null,null,null,null,null,null,"",{"$f":"IF(Лист2!D97=0,\"\",Лист2!D97)","v":""},""]
[null,null,null,null,null,null,null,null,null,null,null,null,null,null,null,"",{"$f":"IF(Лист2!D98=0,\"\",Лист2!D98)","v":""},""]
[null,null,null,null,null,null,null,null,null,null,null,null,null,null,null,"",{"$f":"IF(Лист2!D99=0,\"\",Лист2!D99)","v":""},""]
[null,null,null,null,null,null,null,null,null,null,null,null,null,null,null,"",{"$f":"IF(Лист2!D100=0,\"\",Лист2!D100)","v":""},""]
[null,null,null,null,null,null,null,null,null,null,null,null,null,null,null,"",{"$f":"IF(Лист2!D101=0,\"\",Лист2!D101)","v":""},""]
[null,null,null,null,null,null,null,null,null,null,null,null,null,null,null,"",{"$f":"IF(Лист2!D102=0,\"\",Лист2!D102)","v":""},""]
[null,null,null,null,null,null,null,null,null,null,null,null,null,null,null,"",{"$f":"IF(Лист2!D103=0,\"\",Лист2!D103)","v":""},""]
[null,null,null,null,null,null,null,null,null,null,null,null,null,null,null,"",{"$f":"IF(Лист2!D104=0,\"\",Лист2!D104)","v":""},""]
[null,null,null,null,null,null,null,null,null,null,null,null,null,null,null,"",{"$f":"IF(Лист2!D105=0,\"\",Лист2!D105)","v":""},""]
[null,null,null,null,null,null,null,null,null,null,null,null,null,null,null,"",{"$f":"IF(Лист2!D106=0,\"\",Лист2!D106)","v":""},""]
[null,null,null,null,null,null,null,null,null,null,null,null,null,null,null,"",{"$f":"IF(Лист2!D107=0,\"\",Лист2!D107)","v":""}]
[null,null,null,null,null,null,null,null,null,null,null,null,null,null,null,"",{"$f":"IF(Лист2!D108=0,\"\",Лист2!D108)","v":""}]
[null,null,null,null,null,null,null,null,null,null,null,null,null,null,null,"",{"$f":"IF(Лист2!D109=0,\"\",Лист2!D109)","v":""}]
[null,null,null,null,null,null,null,null,null,null,null,null,null,null,null,"",{"$f":"IF(Лист2!D110=0,\"\",Лист2!D110)","v":""}]
[null,null,null,null,null,null,null,null,null,null,null,null,null,null,null,"",{"$f":"IF(Лист2!D111=0,\"\",Лист2!D111)","v":""}]
[null,null,null,null,null,null,null,null,null,null,null,null,null,null,null,"",{"$f":"IF(Лист2!D112=0,\"\",Лист2!D112)","v":""}]
[null,null,null,null,null,null,null,null,null,null,null,null,null,null,null,"",{"$f":"IF(Лист2!D113=0,\"\",Лист2!D113)","v":""}]
[null,null,null,null,null,null,null,null,null,null,null,null,null,null,null,"",{"$f":"IF(Лист2!D114=0,\"\",Лист2!D114)","v":""}]
[null,null,null,null,null,null,null,null,null,null,null,null,null,null,null,"",{"$f":"IF(Лист2!D115=0,\"\",Лист2!D115)","v":""}]
[null,null,null,null,null,null,null,null,null,null,null,null,null,null,null,""]
[null,null,null,null,null,null,null,null,null,null,null,null,null,null,null,""]
[null,null,null,null,null,null,null,null,null,null,null,null,null,null,null,""]
[null,null,null,null,null,null,null,null,null,null,null,null,null,null,null,""]
[null,null,null,null,null,null,null,null,null,null,null,null,null,null,null,""]
[null,null,null,null,null,null,null,null,null,null,null,null,null,null,null,""]
[null,null,null,null,null,null,null,null,null,null,null,null,null,null,null,""]
[null,null,null,null,null,null,null,null,null,null,null,null,null,null,null,""]
[null,null,null,null,null,null,null,null,null,null,null,null,null,null,null,""]
[null,null,null,null,null,null,null,null,null,null,null,null,null,null,null,""]
[null,null,null,null,null,null,null,null,null,null,null,null,null,null,null,""]
[null,null,null,null,null,null,null,null,null,null,null,null,null,null,null,""]

{"sheet":"Лист3","index":2,"n_rows":0,"n_cols":0,"rows_kept":0,"cut":false,"hidden":true,"merged":[]}